[Event "Late-Titled-Tuesday-Blitz-April-02-2024"]
[Site "Chess.com"]
[Date "2024.04.02"]
[Round "10"]
[White "Savagelittlemole"]
[Black "Indefatigable11"]
[Result "1-0"]
[WhiteElo "2501"]
[BlackElo "2240"]
[TimeControl "180+1"]
[EndTime "15:54:18 PDT"]
[Termination "Savagelittlemole won by checkmate"]

1. e4 {[%clk 0:02:59]} 1... e6 {[%clk 0:03:00.4]} 2. d4 {[%clk 0:02:59]} 2... d5
{[%clk 0:03:00.9]} 3. Nd2 {[%clk 0:02:59]} 3... c5 {[%clk 0:03:00]} 4. exd5
{[%clk 0:02:59]} 4... Qxd5 {[%clk 0:03:00.6]} 5. Ngf3 {[%clk 0:02:59.1]} 5...
cxd4 {[%clk 0:03:00.9]} 6. Bc4 {[%clk 0:02:59]} 6... Qd6 {[%clk 0:03:01.2]} 7.
O-O {[%clk 0:02:59.7]} 7... Nf6 {[%clk 0:03:00.1]} 8. Nb3 {[%clk 0:02:59.9]}
8... Nc6 {[%clk 0:02:57.3]} 9. Nbxd4 {[%clk 0:03:00.1]} 9... Nxd4 {[%clk
0:02:57.5]} 10. Nxd4 {[%clk 0:03:01]} 10... Be7 {[%clk 0:02:57.5]} 11. Be3
{[%clk 0:02:54.1]} 11... O-O {[%clk 0:02:56.5]} 12. Nb5 {[%clk 0:02:52.3]} 12...
Qc6 {[%clk 0:02:55.7]} 13. Bd3 {[%clk 0:02:45.9]} 13... a6 {[%clk 0:02:54.6]}
14. Nd4 {[%clk 0:02:44.5]} 14... Qc7 {[%clk 0:02:54.9]} 15. Qf3 {[%clk
0:02:36.9]} 15... Bc5 {[%clk 0:02:36.8]} 16. Rad1 {[%clk 0:02:24.4]} 16... Bxd4
{[%clk 0:02:31.7]} 17. Bxd4 {[%clk 0:02:25.3]} 17... e5 {[%clk 0:02:31.8]} 18.
Bc3 {[%clk 0:02:22.4]} 18... Bg4 {[%clk 0:02:31.4]} 19. Qg3 {[%clk 0:02:19.2]}
19... Bxd1 {[%clk 0:02:30.7]} 20. Bxe5 {[%clk 0:02:19.3]} 20... Qe7 {[%clk
0:02:26.5]} 21. Rxd1 {[%clk 0:02:15.7]} 21... Nh5 {[%clk 0:02:15.2]} 22. Qe3
{[%clk 0:02:04.6]} 22... Rfe8 {[%clk 0:01:59.8]} 23. f4 {[%clk 0:01:42.3]} 23...
f6 {[%clk 0:01:45.9]} 24. Qe4 {[%clk 0:01:29.2]} 24... g6 {[%clk 0:01:45.2]} 25.
Qc4+ {[%clk 0:01:25.7]} 25... Kh8 {[%clk 0:01:39.1]} 26. Bc3 {[%clk 0:01:19.8]}
26... Rac8 {[%clk 0:01:29]} 27. Qa4 {[%clk 0:01:02.6]} 27... Qe3+ {[%clk
0:00:58.4]} 28. Kh1 {[%clk 0:00:54.6]} 28... Rxc3 {[%clk 0:00:58.3]} 29. bxc3
{[%clk 0:00:49.7]} 29... b5 {[%clk 0:00:44.6]} 30. Qd4 {[%clk 0:00:40.5]} 30...
Qe1+ {[%clk 0:00:25.4]} 31. Bf1 {[%clk 0:00:25.2]} 31... Qh4 {[%clk 0:00:20.1]}
32. Qd7 {[%clk 0:00:15.7]} 32... Rf8 {[%clk 0:00:12.4]} 33. Qd6 {[%clk
0:00:13.7]} 33... Rg8 {[%clk 0:00:10.5]} 34. Kg1 {[%clk 0:00:05.7]} 34... Qg4
{[%clk 0:00:07.5]} 35. g3 {[%clk 0:00:03.8]} 35... Re8 {[%clk 0:00:03.5]} 36.
Bg2 {[%clk 0:00:02.8]} 36... Rg8 {[%clk 0:00:02.4]} 37. Qd4 {[%clk 0:00:02.4]}
37... Qf5 {[%clk 0:00:01.6]} 38. Qd2 {[%clk 0:00:02.7]} 38... Ng7 {[%clk
0:00:01.2]} 39. Qd4 {[%clk 0:00:03]} 39... Qe6 {[%clk 0:00:01.5]} 40. Qd3 {[%clk
0:00:03.4]} 40... Nf5 {[%clk 0:00:01.7]} 41. Qd2 {[%clk 0:00:03.2]} 41... Re8
{[%clk 0:00:02.3]} 42. Qf2 {[%clk 0:00:03]} 42... Ne3 {[%clk 0:00:02.4]} 43. Re1
{[%clk 0:00:02.9]} 43... Qe7 {[%clk 0:00:01.3]} 44. Kh1 {[%clk 0:00:02.7]} 44...
Qc5 {[%clk 0:00:01.3]} 45. h3 {[%clk 0:00:03.1]} 45... Re7 {[%clk 0:00:01.6]}
46. Kh2 {[%clk 0:00:03.2]} 46... Qb6 {[%clk 0:00:02]} 47. Kh1 {[%clk 0:00:03.1]}
47... Qc5 {[%clk 0:00:01]} 48. Re2 {[%clk 0:00:03.7]} 48... Qb6 {[%clk 0:00:01]}
49. c4 {[%clk 0:00:03.8]} 49... Qc5 {[%clk 0:00:01.7]} 50. cxb5 {[%clk
0:00:03.9]} 50... axb5 {[%clk 0:00:02.4]} 51. Kh2 {[%clk 0:00:04.6]} 51... Ng4+
{[%clk 0:00:01.9]} 52. hxg4 {[%clk 0:00:04.7]} 52... Qxf2 {[%clk 0:00:02.4]} 53.
Rxf2 {[%clk 0:00:05.6]} 53... b4 {[%clk 0:00:01.9]} 54. Bd5 {[%clk 0:00:05.8]}
54... Ra7 {[%clk 0:00:02.4]} 55. Bb3 {[%clk 0:00:06.4]} 55... Rc7 {[%clk
0:00:01.8]} 56. Re2 {[%clk 0:00:06.8]} 56... Rc3 {[%clk 0:00:01.7]} 57. Kg2
{[%clk 0:00:07]} 57... Kg7 {[%clk 0:00:02]} 58. Re7+ {[%clk 0:00:07.4]} 58...
Kh6 {[%clk 0:00:01.9]} 59. Kf2 {[%clk 0:00:07.9]} 59... f5 {[%clk 0:00:02]} 60.
g5+ {[%clk 0:00:07.4]} 60... Kh5 {[%clk 0:00:02]} 61. Rxh7+ {[%clk 0:00:07.8]}
61... Kg4 {[%clk 0:00:02.3]} 62. Rh4# {[%clk 0:00:08.7]} 1-0

[Event "Late-Titled-Tuesday-Blitz-April-02-2024"]
[Site "Chess.com"]
[Date "2024.04.02"]
[Round "10"]
[White "KuzubovYuriy"]
[Black "Njal28"]
[Result "0-1"]
[WhiteElo "2921"]
[BlackElo "3062"]
[TimeControl "180+1"]
[EndTime "15:54:24 PDT"]
[Termination "Njal28 won by checkmate"]

1. d4 {[%clk 0:03:00.9]} 1... Nf6 {[%clk 0:02:59.8]} 2. c4 {[%clk 0:03:01.3]}
2... e6 {[%clk 0:03:00.1]} 3. Nf3 {[%clk 0:03:01.2]} 3... d5 {[%clk 0:03:00.1]}
4. Nc3 {[%clk 0:03:01.4]} 4... Bb4 {[%clk 0:02:59.7]} 5. Bg5 {[%clk 0:03:00.7]}
5... dxc4 {[%clk 0:02:58.6]} 6. a3 {[%clk 0:02:56.8]} 6... Bxc3+ {[%clk
0:02:56.7]} 7. bxc3 {[%clk 0:02:57.7]} 7... b5 {[%clk 0:02:54]} 8. Qb1 {[%clk
0:02:51.9]} 8... c6 {[%clk 0:02:52.7]} 9. e4 {[%clk 0:02:50.8]} 9... h6 {[%clk
0:02:53]} 10. Bf4 {[%clk 0:02:46]} 10... Nbd7 {[%clk 0:02:45.2]} 11. a4 {[%clk
0:02:29]} 11... a6 {[%clk 0:02:44.1]} 12. Be2 {[%clk 0:02:17.3]} 12... Bb7
{[%clk 0:02:24.1]} 13. Bxc4 {[%clk 0:02:02.1]} 13... bxc4 {[%clk 0:02:15.5]} 14.
Qxb7 {[%clk 0:02:01.4]} 14... Nxe4 {[%clk 0:02:14.5]} 15. Qxc6 {[%clk
0:01:44.1]} 15... Nxc3 {[%clk 0:02:14.6]} 16. Qxc4 {[%clk 0:01:33.6]} 16... Nd5
{[%clk 0:02:14.5]} 17. Bd6 {[%clk 0:01:33]} 17... N7b6 {[%clk 0:02:01]} 18. Qc6+
{[%clk 0:01:29.2]} 18... Qd7 {[%clk 0:02:01.5]} 19. Qxd7+ {[%clk 0:01:25.1]}
19... Kxd7 {[%clk 0:02:02.2]} 20. Bc5 {[%clk 0:01:25]} 20... f6 {[%clk
0:01:58.8]} 21. Ke2 {[%clk 0:01:17]} 21... Nf4+ {[%clk 0:01:53.7]} 22. Kd2
{[%clk 0:01:16.7]} 22... Nc4+ {[%clk 0:01:47.6]} 23. Kc2 {[%clk 0:01:04.2]}
23... Rhc8 {[%clk 0:01:43.4]} 24. Rhb1 {[%clk 0:00:59.5]} 24... Rc7 {[%clk
0:01:29.1]} 25. g3 {[%clk 0:00:47.9]} 25... Nd5 {[%clk 0:01:27.3]} 26. Kd3
{[%clk 0:00:45.9]} 26... Na5 {[%clk 0:01:25.4]} 27. Nd2 {[%clk 0:00:39.3]} 27...
Nb7 {[%clk 0:01:18.5]} 28. Ba3 {[%clk 0:00:36.4]} 28... Rac8 {[%clk 0:00:56.1]}
29. Ne4 {[%clk 0:00:35.1]} 29... f5 {[%clk 0:00:42.5]} 30. Nc5+ {[%clk
0:00:29.1]} 30... Nxc5+ {[%clk 0:00:42.8]} 31. Bxc5 {[%clk 0:00:28]} 31... e5
{[%clk 0:00:41.3]} 32. a5 {[%clk 0:00:28.1]} 32... Ke6 {[%clk 0:00:28.8]} 33. f3
{[%clk 0:00:25.9]} 33... e4+ {[%clk 0:00:26.2]} 34. fxe4 {[%clk 0:00:24.4]}
34... fxe4+ {[%clk 0:00:27.1]} 35. Kxe4 {[%clk 0:00:19.2]} 35... Nc3+ {[%clk
0:00:26.6]} 36. Kd3 {[%clk 0:00:20]} 36... Nxb1 {[%clk 0:00:26.6]} 37. Rxb1
{[%clk 0:00:20.7]} 37... Kd5 {[%clk 0:00:22.3]} 38. Re1 {[%clk 0:00:20.4]} 38...
Rd7 {[%clk 0:00:09.7]} 39. Re5+ {[%clk 0:00:19.9]} 39... Kc6 {[%clk 0:00:09.9]}
40. Kc4 {[%clk 0:00:19.9]} 40... Kb7 {[%clk 0:00:08]} 41. Re6 {[%clk 0:00:17.8]}
41... Rc6 {[%clk 0:00:07.3]} 42. Re8 {[%clk 0:00:17.8]} 42... Rc8 {[%clk
0:00:07]} 43. Re4 {[%clk 0:00:17.4]} 43... Rcd8 {[%clk 0:00:04.6]} 44. h4 {[%clk
0:00:17.3]} 44... Rc7 {[%clk 0:00:02.7]} 45. Rg4 {[%clk 0:00:16.4]} 45... Rdc8
{[%clk 0:00:03.1]} 46. Rg6 {[%clk 0:00:16.6]} 46... Rd7 {[%clk 0:00:01.6]} 47.
Rb6+ {[%clk 0:00:16.7]} 47... Kc7 {[%clk 0:00:02.2]} 48. Rxa6 {[%clk 0:00:16.9]}
48... Rf7 {[%clk 0:00:01.5]} 49. Rg6 {[%clk 0:00:16.9]} 49... Rd7 {[%clk
0:00:01.5]} 50. a6 {[%clk 0:00:17.2]} 50... Kb8 {[%clk 0:00:02.2]} 51. Kb5
{[%clk 0:00:15.9]} 51... Ka8 {[%clk 0:00:02.8]} 52. a7 {[%clk 0:00:15.3]} 52...
Rb7+ {[%clk 0:00:02.9]} 53. Ka5 {[%clk 0:00:12.9]} 53... Rcc7 {[%clk 0:00:02.1]}
54. h5 {[%clk 0:00:12.7]} 54... Rc8 {[%clk 0:00:02.7]} 55. g4 {[%clk 0:00:13]}
55... Rb1 {[%clk 0:00:03.3]} 56. Rxg7 {[%clk 0:00:11.5]} 56... Ra1+ {[%clk
0:00:04]} 57. Kb4 {[%clk 0:00:11.8]} 57... Rb1+ {[%clk 0:00:04.8]} 58. Kc4
{[%clk 0:00:11.7]} 58... Rc1+ {[%clk 0:00:05.1]} 59. Kd5 {[%clk 0:00:11.5]}
59... Rg1 {[%clk 0:00:06]} 60. Rg6 {[%clk 0:00:11.4]} 60... Rd8+ {[%clk
0:00:05.9]} 61. Ke4 {[%clk 0:00:11.6]} 61... Re1+ {[%clk 0:00:06.6]} 62. Kd3
{[%clk 0:00:11.6]} 62... Rc1 {[%clk 0:00:06.2]} 63. Ke4 {[%clk 0:00:11.6]} 63...
Re1+ {[%clk 0:00:06.3]} 64. Kf3 {[%clk 0:00:11]} 64... Rde8 {[%clk 0:00:05.5]}
65. Kg3 {[%clk 0:00:09.5]} 65... R8e3+ {[%clk 0:00:04.8]} 66. Kf4 {[%clk
0:00:09.9]} 66... Re8 {[%clk 0:00:04.7]} 67. Kf5 {[%clk 0:00:09.2]} 67... Rf1#
{[%clk 0:00:05]} 0-1

[Event "Late-Titled-Tuesday-Blitz-April-02-2024"]
[Site "Chess.com"]
[Date "2024.04.02"]
[Round "10"]
[White "GaiozNigalidze"]
[Black "jaskol95"]
[Result "1-0"]
[WhiteElo "2718"]
[BlackElo "2538"]
[TimeControl "180+1"]
[EndTime "15:54:26 PDT"]
[Termination "GaiozNigalidze won by checkmate"]

1. e4 {[%clk 0:03:00.9]} 1... c5 {[%clk 0:03:00.6]} 2. Nf3 {[%clk 0:03:00.5]}
2... e6 {[%clk 0:03:01.3]} 3. d4 {[%clk 0:02:58.9]} 3... cxd4 {[%clk 0:03:02.2]}
4. Nxd4 {[%clk 0:02:59.1]} 4... Nc6 {[%clk 0:03:03]} 5. Nc3 {[%clk 0:02:58.6]}
5... Qc7 {[%clk 0:03:02.3]} 6. Nxc6 {[%clk 0:02:48.1]} 6... Qxc6 {[%clk
0:03:01.6]} 7. Be2 {[%clk 0:02:48.4]} 7... Nf6 {[%clk 0:02:46.4]} 8. e5 {[%clk
0:02:45.1]} 8... Ne4 {[%clk 0:02:36.1]} 9. Nb5 {[%clk 0:02:20.1]} 9... Bc5
{[%clk 0:02:12.4]} 10. O-O {[%clk 0:02:19]} 10... a6 {[%clk 0:02:07.9]} 11. Nd4
{[%clk 0:02:11.7]} 11... Qd5 {[%clk 0:01:59]} 12. Nf3 {[%clk 0:02:10.9]} 12...
Qxd1 {[%clk 0:01:57.6]} 13. Bxd1 {[%clk 0:02:11.8]} 13... f5 {[%clk 0:01:56.6]}
14. a3 {[%clk 0:01:56.6]} 14... O-O {[%clk 0:01:54.6]} 15. b4 {[%clk 0:01:56.1]}
15... Be7 {[%clk 0:01:50.9]} 16. Bb2 {[%clk 0:01:47.4]} 16... b5 {[%clk
0:01:50.6]} 17. Rc1 {[%clk 0:01:38.1]} 17... Bb7 {[%clk 0:01:48.6]} 18. c4
{[%clk 0:01:37.9]} 18... bxc4 {[%clk 0:01:43.6]} 19. Rxc4 {[%clk 0:01:38.8]}
19... Rac8 {[%clk 0:01:43.6]} 20. Rd4 {[%clk 0:01:33.2]} 20... d6 {[%clk
0:01:33]} 21. exd6 {[%clk 0:01:21.3]} 21... Bxd6 {[%clk 0:01:26.1]} 22. Bb3
{[%clk 0:01:18.4]} 22... Rfe8 {[%clk 0:01:16.5]} 23. Rfd1 {[%clk 0:01:14.8]}
23... Bb8 {[%clk 0:01:15.9]} 24. Rd7 {[%clk 0:01:10.6]} 24... Bc6 {[%clk
0:01:15.8]} 25. Rxg7+ {[%clk 0:01:10]} 25... Kf8 {[%clk 0:01:14.4]} 26. Rxh7
{[%clk 0:01:03.4]} 26... e5 {[%clk 0:01:15]} 27. Rf7+ {[%clk 0:00:49.8]} 27...
Kg8 {[%clk 0:01:15.6]} 28. Rxf5+ {[%clk 0:00:50.5]} 28... Kg7 {[%clk 0:01:16.3]}
29. Nxe5 {[%clk 0:00:49.8]} 29... Bxe5 {[%clk 0:01:15.8]} 30. Rxe5 {[%clk
0:00:49.7]} 30... Rxe5 {[%clk 0:01:15.6]} 31. Bxe5+ {[%clk 0:00:49.9]} 31... Kg6
{[%clk 0:01:14.3]} 32. Rc1 {[%clk 0:00:45.9]} 32... Kf5 {[%clk 0:01:05.8]} 33.
Bb2 {[%clk 0:00:37.5]} 33... Nd2 {[%clk 0:00:54.8]} 34. Bd5 {[%clk 0:00:36.1]}
34... Bd7 {[%clk 0:00:52.3]} 35. Rxc8 {[%clk 0:00:34.8]} 35... Bxc8 {[%clk
0:00:53.2]} 36. f3 {[%clk 0:00:33.2]} 36... Bd7 {[%clk 0:00:48.3]} 37. Bc3
{[%clk 0:00:32.7]} 37... Nb1 {[%clk 0:00:48.3]} 38. Be4+ {[%clk 0:00:32.6]}
38... Kf4 {[%clk 0:00:48.3]} 39. Bxb1 {[%clk 0:00:33.5]} 39... a5 {[%clk
0:00:48.6]} 40. Bd2+ {[%clk 0:00:32.3]} 40... Ke5 {[%clk 0:00:48.2]} 41. bxa5
{[%clk 0:00:33.2]} 41... Bb5 {[%clk 0:00:47.9]} 42. Kf2 {[%clk 0:00:33.4]} 42...
Kd5 {[%clk 0:00:48.2]} 43. Ke3 {[%clk 0:00:34.3]} 43... Ke5 {[%clk 0:00:48.4]}
44. Bc3+ {[%clk 0:00:34.2]} 44... Ke6 {[%clk 0:00:48.2]} 45. Bd3 {[%clk
0:00:35.1]} 45... Bc6 {[%clk 0:00:47.9]} 46. a6 {[%clk 0:00:35.7]} 46... Kd6
{[%clk 0:00:47.5]} 47. a7 {[%clk 0:00:36.6]} 47... Kc7 {[%clk 0:00:47.8]} 48.
Be4 {[%clk 0:00:37.5]} 48... Bxe4 {[%clk 0:00:48.5]} 49. Kxe4 {[%clk 0:00:38]}
49... Kb7 {[%clk 0:00:49.4]} 50. Bd4 {[%clk 0:00:37.7]} 50... Ka8 {[%clk
0:00:49.7]} 51. h4 {[%clk 0:00:38.3]} 51... Kb7 {[%clk 0:00:50.6]} 52. h5 {[%clk
0:00:39.1]} 52... Ka8 {[%clk 0:00:51.5]} 53. h6 {[%clk 0:00:39.9]} 53... Kb7
{[%clk 0:00:52.4]} 54. h7 {[%clk 0:00:40.7]} 54... Ka6 {[%clk 0:00:53.3]} 55. g4
{[%clk 0:00:41.1]} 55... Kb5 {[%clk 0:00:54.2]} 56. f4 {[%clk 0:00:41.7]} 56...
Ka4 {[%clk 0:00:55.1]} 57. Bc5 {[%clk 0:00:42.2]} 57... Kb3 {[%clk 0:00:56]} 58.
Kd5 {[%clk 0:00:42.5]} 58... Kc2 {[%clk 0:00:56.9]} 59. f5 {[%clk 0:00:43.2]}
59... Kd1 {[%clk 0:00:57.8]} 60. g5 {[%clk 0:00:43.8]} 60... Ke2 {[%clk
0:00:58.7]} 61. g6 {[%clk 0:00:44.4]} 61... Kf1 {[%clk 0:00:59.6]} 62. f6 {[%clk
0:00:45]} 62... Kg2 {[%clk 0:01:00.5]} 63. f7 {[%clk 0:00:45.5]} 63... Kh3
{[%clk 0:01:01.4]} 64. a8=Q {[%clk 0:00:45.9]} 64... Kg4 {[%clk 0:01:02.3]} 65.
g7 {[%clk 0:00:45.8]} 65... Kf3 {[%clk 0:01:03.2]} 66. f8=Q+ {[%clk 0:00:46]}
66... Ke2 {[%clk 0:01:04.1]} 67. g8=Q {[%clk 0:00:45.6]} 67... Kd1 {[%clk
0:01:05]} 68. h8=Q {[%clk 0:00:46.1]} 68... Kc2 {[%clk 0:01:05.9]} 69. a4 {[%clk
0:00:46.3]} 69... Kd3 {[%clk 0:01:06.8]} 70. a5 {[%clk 0:00:46.9]} 70... Ke2
{[%clk 0:01:07.7]} 71. a6 {[%clk 0:00:47.3]} 71... Kd3 {[%clk 0:01:07.7]} 72. a7
{[%clk 0:00:47.7]} 72... Kc2 {[%clk 0:01:08.6]} 73. Qb7 {[%clk 0:00:46.9]} 73...
Kd1 {[%clk 0:01:09.5]} 74. a8=Q {[%clk 0:00:45.6]} 74... Kc2 {[%clk 0:01:10.4]}
75. Ba7 {[%clk 0:00:39.4]} 75... Kd3 {[%clk 0:01:11.3]} 76. Qac8 {[%clk
0:00:36.7]} 76... Kd2 {[%clk 0:01:10.8]} 77. Qfe8 {[%clk 0:00:35.5]} 77... Kd1
{[%clk 0:01:11.5]} 78. Qgf8 {[%clk 0:00:34.8]} 78... Kd2 {[%clk 0:01:12.4]} 79.
Qhg8 {[%clk 0:00:35.2]} 79... Kd1 {[%clk 0:01:13.3]} 80. Qba8 {[%clk 0:00:33.7]}
80... Kd2 {[%clk 0:01:14.2]} 81. Bb8 {[%clk 0:00:34.1]} 81... Kd1 {[%clk
0:01:15.1]} 82. Kd6 {[%clk 0:00:34.2]} 82... Kd2 {[%clk 0:01:16]} 83. Qab7
{[%clk 0:00:33.1]} 83... Kd1 {[%clk 0:01:16.9]} 84. Kd7 {[%clk 0:00:27.6]} 84...
Kd2 {[%clk 0:01:17.8]} 85. Qbc7 {[%clk 0:00:21.8]} 85... Kd1 {[%clk 0:01:18.7]}
86. Qce5 {[%clk 0:00:20.7]} 86... Kd2 {[%clk 0:01:19.6]} 87. Qeh8 {[%clk
0:00:20.1]} 87... Kd1 {[%clk 0:01:20.5]} 88. Qhf6 {[%clk 0:00:13.2]} 88... Kd2
{[%clk 0:01:21.4]} 89. Qfd8 {[%clk 0:00:13.1]} 89... Kd1 {[%clk 0:01:22.3]} 90.
Kd6 {[%clk 0:00:11.6]} 90... Kd2 {[%clk 0:01:23.2]} 91. Ke5+ {[%clk 0:00:11.2]}
91... Ke2 {[%clk 0:01:22.4]} 92. Kd5+ {[%clk 0:00:11.5]} 92... Kd2 {[%clk
0:01:22.8]} 93. Ke4+ {[%clk 0:00:11.5]} 93... Ke1 {[%clk 0:01:23.7]} 94. Kf3+
{[%clk 0:00:11.1]} 94... Kf1 {[%clk 0:01:23.9]} 95. Kg3+ {[%clk 0:00:10.3]}
95... Kg1 {[%clk 0:01:24.1]} 96. Kh3+ {[%clk 0:00:09.3]} 96... Kh1 {[%clk
0:01:24.8]} 97. Qb7# {[%clk 0:00:02.7]} 1-0

[Event "Late-Titled-Tuesday-Blitz-April-02-2024"]
[Site "Chess.com"]
[Date "2024.04.02"]
[Round "10"]
[White "Gabcur"]
[Black "WCM-Mexicana"]
[Result "1-0"]
[WhiteElo "2361"]
[BlackElo "2410"]
[TimeControl "180+1"]
[EndTime "15:54:28 PDT"]
[Termination "Gabcur won on time"]

1. d4 {[%clk 0:03:00.9]} 1... d5 {[%clk 0:02:58]} 2. Nc3 {[%clk 0:03:00.8]} 2...
Nf6 {[%clk 0:02:57.1]} 3. Bf4 {[%clk 0:03:01]} 3... c6 {[%clk 0:02:55.3]} 4. e3
{[%clk 0:03:00.7]} 4... Bf5 {[%clk 0:02:54.3]} 5. f3 {[%clk 0:03:01]} 5... e6
{[%clk 0:02:54.2]} 6. g4 {[%clk 0:03:01.1]} 6... Bg6 {[%clk 0:02:54.4]} 7. h4
{[%clk 0:03:01.6]} 7... h5 {[%clk 0:02:54.9]} 8. g5 {[%clk 0:03:01.8]} 8... Nfd7
{[%clk 0:02:55.3]} 9. Bd3 {[%clk 0:03:02]} 9... Bxd3 {[%clk 0:02:55.4]} 10. Qxd3
{[%clk 0:03:02.3]} 10... g6 {[%clk 0:02:56]} 11. e4 {[%clk 0:02:53.8]} 11... Na6
{[%clk 0:02:49.3]} 12. O-O-O {[%clk 0:02:51.7]} 12... Qa5 {[%clk 0:02:44.3]} 13.
Kb1 {[%clk 0:02:51]} 13... Bb4 {[%clk 0:02:39.1]} 14. Nge2 {[%clk 0:02:50.1]}
14... Nb6 {[%clk 0:02:29]} 15. exd5 {[%clk 0:02:37.1]} 15... cxd5 {[%clk
0:02:22.2]} 16. Qb5+ {[%clk 0:02:31.7]} 16... Qxb5 {[%clk 0:02:19.4]} 17. Nxb5
{[%clk 0:02:31.6]} 17... Kd7 {[%clk 0:02:18.2]} 18. c3 {[%clk 0:02:18.7]} 18...
Be7 {[%clk 0:02:16]} 19. Be5 {[%clk 0:02:12.1]} 19... Rhc8 {[%clk 0:02:14.9]}
20. Nf4 {[%clk 0:02:12.2]} 20... Nc4 {[%clk 0:02:13.2]} 21. Nd3 {[%clk
0:02:12.1]} 21... Nb8 {[%clk 0:02:06.1]} 22. Bxb8 {[%clk 0:02:03.2]} 22... Rcxb8
{[%clk 0:02:06.3]} 23. b3 {[%clk 0:02:03.3]} 23... a6 {[%clk 0:01:48.8]} 24.
bxc4 {[%clk 0:01:51.4]} 24... axb5 {[%clk 0:01:49.7]} 25. cxd5 {[%clk
0:01:38.7]} 25... exd5 {[%clk 0:01:50.6]} 26. Ne5+ {[%clk 0:01:32.1]} 26... Ke8
{[%clk 0:01:50.6]} 27. Rhe1 {[%clk 0:01:31.5]} 27... Rc8 {[%clk 0:01:49]} 28.
Re3 {[%clk 0:01:14.5]} 28... Ra3 {[%clk 0:01:48.2]} 29. Kb2 {[%clk 0:01:14.4]}
29... Ra6 {[%clk 0:01:47.1]} 30. Rde1 {[%clk 0:01:09.8]} 30... Re6 {[%clk
0:01:44.2]} 31. Nd3 {[%clk 0:01:08.8]} 31... Rxe3 {[%clk 0:01:37.9]} 32. Rxe3
{[%clk 0:01:09.7]} 32... Kf8 {[%clk 0:01:38.3]} 33. f4 {[%clk 0:00:46.6]} 33...
Rc4 {[%clk 0:01:31.5]} 34. Re5 {[%clk 0:00:41.1]} 34... b4 {[%clk 0:01:31.8]}
35. Rxd5 {[%clk 0:00:26.2]} 35... bxc3+ {[%clk 0:01:30.9]} 36. Kc2 {[%clk
0:00:25]} 36... Ra4 {[%clk 0:01:17.8]} 37. Rd7 {[%clk 0:00:18.6]} 37... b5
{[%clk 0:01:14.3]} 38. Rb7 {[%clk 0:00:17.1]} 38... b4 {[%clk 0:01:12.1]} 39.
Kb1 {[%clk 0:00:15.1]} 39... Ke8 {[%clk 0:00:59.9]} 40. Nc5 {[%clk 0:00:13.6]}
40... Bxc5 {[%clk 0:00:55.7]} 41. dxc5 {[%clk 0:00:13.7]} 41... Ra5 {[%clk
0:00:56.2]} 42. c6 {[%clk 0:00:12.2]} 42... Rc5 {[%clk 0:00:55.9]} 43. Rxb4
{[%clk 0:00:11]} 43... Rxc6 {[%clk 0:00:55.9]} 44. Kc2 {[%clk 0:00:11.9]} 44...
Kd7 {[%clk 0:00:54.2]} 45. a4 {[%clk 0:00:11.7]} 45... Ke6 {[%clk 0:00:50.7]}
46. Rb5 {[%clk 0:00:09.4]} 46... Rc4 {[%clk 0:00:48]} 47. a5 {[%clk 0:00:09.4]}
47... Rxf4 {[%clk 0:00:45.8]} 48. Kxc3 {[%clk 0:00:09.7]} 48... Ra4 {[%clk
0:00:46.1]} 49. Kb3 {[%clk 0:00:09.1]} 49... Ra1 {[%clk 0:00:42.2]} 50. Kb2
{[%clk 0:00:09.4]} 50... Ra4 {[%clk 0:00:42.2]} 51. Kb3 {[%clk 0:00:09.8]} 51...
Ra1 {[%clk 0:00:39.8]} 52. Kb2 {[%clk 0:00:09.9]} 52... Rh1 {[%clk 0:00:24]} 53.
a6 {[%clk 0:00:09.7]} 53... Rxh4 {[%clk 0:00:24.7]} 54. Ra5 {[%clk 0:00:09.6]}
54... Rd4 {[%clk 0:00:20.7]} 55. a7 {[%clk 0:00:09.6]} 55... Rd8 {[%clk
0:00:20.9]} 56. Kc2 {[%clk 0:00:09.8]} 56... h4 {[%clk 0:00:20.7]} 57. a8=Q
{[%clk 0:00:08.9]} 57... Rxa8 {[%clk 0:00:21.3]} 58. Rxa8 {[%clk 0:00:09.3]}
58... Kf5 {[%clk 0:00:21.1]} 59. Ra7 {[%clk 0:00:07.1]} 59... Kxg5 {[%clk
0:00:12.8]} 60. Rxf7 {[%clk 0:00:06.6]} 60... h3 {[%clk 0:00:13.4]} 61. Kd2
{[%clk 0:00:06.7]} 61... Kg4 {[%clk 0:00:09.8]} 62. Ke2 {[%clk 0:00:06.7]} 62...
Kg3 {[%clk 0:00:05.8]} 63. Rg7 {[%clk 0:00:06.4]} 1-0